fUSD/lending_fUSD_20240116
["ID","MTS","AMOUNT","RATE_DAILY","PERIOD"]
[311756171,1705378263270,-500.0,0.00022706,2]
[311756172,1705378263280,-810.38,0.00022706,2]
[311756173,1705378263290,-715.32,0.00022706,2]
[311756174,1705378263300,-722.27,0.00022706,2]
[311756175,1705378263310,-500.0,0.00022706,2]
[311756176,1705378263320,-500.0,0.00022706,2]
[311756177,1705378263329,-660.23,0.00022706,2]
[311756178,1705378263340,-847.11,0.00022706,2]
[311756179,1705378263349,-602.62,0.00022706,2]
[311756180,1705378263359,-500.0,0.00022706,2]
[311756181,1705378263368,-627.89,0.00022706,2]
[311756182,1705378263378,-1705.45,0.00022706,2]
[311756183,1705378263388,-2403.37,0.00022706,2]
[311756184,1705378263397,-1039.82,0.00022706,2]
[311756185,1705378263407,-500.0,0.00022706,2]
[311756186,1705378263417,-500.0,0.00022706,2]
[311756187,1705378263426,-570.4,0.00022706,2]
[311756188,1705378263435,-2574.76,0.00022706,2]
[311756189,1705378263444,-1746.2,0.00022706,2]
[311756190,1705378263454,-1132.73,0.00022706,2]
[311756191,1705378263463,-500.0,0.00022706,2]
[311756192,1705378263473,-500.0,0.00022706,2]
[311756193,1705378263482,-598.31,0.00022706,2]
[311756194,1705378263492,-597.14,0.00022706,2]
[311756195,1705378263501,-640.14,0.00022706,2]
[311756196,1705378263511,-1253.06,0.00022706,2]
[311756197,1705378263520,-500.0,0.00022706,2]
[311756198,1705378263530,-942.35,0.00022706,2]
[311756199,1705378263540,-191.56,0.00022706,2]
[311756200,1705378263550,-3121.21,0.00022706,2]
[311756201,1705378263559,-631.69,0.00022706,2]
[311756202,1705378263570,-629.5,0.00022706,2]
[311756203,1705378263580,-500.0,0.00022706,2]
[311756204,1705378263590,-546.29,0.00022706,2]
[311756205,1705378263600,-602.8,0.00022706,2]
[311756206,1705378263610,-739.11,0.00022706,2]
[311756207,1705378263619,-500.0,0.00022706,2]
[311756208,1705378263629,-500.0,0.00022706,2]
[311756209,1705378263639,-1387.18,0.00022706,2]
[311756210,1705378263649,-1473.84,0.00022706,2]
[311756211,1705378263659,-528.94,0.00022706,2]
[311756212,1705378263668,-500.0,0.00022706,2]
[311756213,1705378263678,-500.0,0.00022706,2]
[311756214,1705378263688,-854.0,0.00022706,2]
[311756215,1705378263697,-500.0,0.00022706,2]
[311756216,1705378263707,-607.84,0.00022706,2]
[311756217,1705378263716,-795.55,0.00022706,2]
[311756218,1705378263726,-693.09,0.00022706,2]
[311756219,1705378263736,-500.0,0.00022706,2]
[311756220,1705378263746,-500.0,0.00022706,2]
[311756221,1705378263755,-500.0,0.00022706,2]
[311756222,1705378263765,-500.0,0.00022706,2]
[311756223,1705378263776,-1434.28,0.00022706,2]
[311756224,1705378263786,-508.29,0.00022706,2]
[311756225,1705378263795,-477.52289987,0.00022706,2]
[311756226,1705378263805,-2152.5,0.00022706,2]
[311756227,1705378263815,-500.0,0.00022706,2]
[311756228,1705378263825,-500.0,0.00022706,2]
[311756229,1705378263834,-1145.58,0.00022706,2]
[311756230,1705378263843,-500.0,0.00022706,2]
[311756231,1705378263852,-646.94,0.00022706,2]
[311756232,1705378263862,-1162.73,0.00022706,2]
[311756233,1705378263871,-500.0,0.00022706,2]
[311756234,1705378263880,-769.22,0.00022706,2]
[311756235,1705378263890,-555.51,0.00022706,2]
[311756236,1705378263899,-647.14,0.00022706,2]
[311756237,1705378263909,-1021.57,0.00022706,2]
[311756238,1705378263919,-606.44,0.00022706,2]
[311756239,1705378263929,-500.0,0.00022707,2]
[311756240,1705378263938,-500.0,0.00022707,2]
[311756241,1705378263948,-500.0,0.00022707,2]
[311756242,1705378263957,-500.0,0.00022707,2]
[311756243,1705378263967,-500.0,0.00022707,2]
[311756244,1705378263977,-532.15,0.00022707,2]
[311756245,1705378263987,-575.17,0.00022707,2]
[311756246,1705378263996,-500.0,0.00022707,2]
[311756247,1705378264006,-500.0,0.00022707,2]
[311756248,1705378264015,-500.0,0.00022707,2]
[311756249,1705378264024,-500.0,0.00022707,2]
[311756250,1705378264034,-500.0,0.00022707,2]
[311756251,1705378264043,-500.0,0.00022707,2]
[311756252,1705378264052,-500.0,0.00022707,2]
[311756253,1705378264061,-500.0,0.00022707,2]
[311756254,1705378264071,-500.0,0.00022707,2]
[311756255,1705378264080,-500.0,0.00022707,2]
[311756256,1705378264090,-500.0,0.00022707,2]
[311756257,1705378264110,-500.0,0.00022707,2]
[311756258,1705378264121,-500.0,0.00022707,2]
[311756259,1705378264132,-744.59,0.00022707,2]
[311756260,1705378264142,-500.0,0.00022707,2]
[311756261,1705378264153,-699.75,0.00022707,2]
[311756262,1705378264163,-500.0,0.00022707,2]
[311756263,1705378264173,-591.21,0.00022707,2]
[311756264,1705378264183,-500.0,0.00022707,2]
[311756265,1705378264193,-579.24,0.00022707,2]
[311756266,1705378264203,-500.0,0.00022707,2]
[311756267,1705378264213,-500.0,0.00022707,2]
[311756268,1705378264223,-500.0,0.00022707,2]
[311756269,1705378264233,-600.03,0.00022707,2]
[311756270,1705378264242,-500.0,0.00022707,2]
[311756271,1705378264252,-500.0,0.00022707,2]
[311756272,1705378264262,-500.0,0.00022707,2]
[311756273,1705378264273,-613.57,0.00022707,2]
[311756274,1705378264282,-514.63,0.00022707,2]
[311756275,1705378264293,-1004.69,0.00022707,2]
[311756276,1705378264302,-500.0,0.00022707,2]
[311756277,1705378264313,-777.46,0.00022707,2]
[311756278,1705378264322,-500.0,0.00022707,2]
[311756279,1705378264332,-650.94,0.00022707,2]
[311756280,1705378264342,-500.0,0.00022707,2]
[311756281,1705378264351,-598.0,0.00022707,2]
[311756282,1705378264361,-364.09798948,0.00022707,2]
[311756283,1705378264371,-562.18,0.00022707,2]
[311756284,1705378264381,-479.98222053,0.00022707,2]
[311756285,1705378264391,-500.0,0.00022707,2]
[311756286,1705378264402,-500.0,0.00022707,2]
[311756287,1705378264412,-500.0,0.00022707,2]
[311756288,1705378264421,-500.0,0.00022707,2]
[311756289,1705378264431,-560.2,0.00022707,2]
[311756290,1705378264442,-502.82,0.00022707,2]
[311756291,1705378264453,-500.0,0.00022707,2]
[311756292,1705378264463,-500.0,0.00022707,2]
[311756293,1705378264473,-501.54,0.00022707,2]
[311756294,1705378264483,-1021.7,0.00022707,2]
[311756295,1705378264493,-529.71,0.00022707,2]
[311756296,1705378264503,-455.94544068,0.00022707,2]
[311756297,1705378264514,-832.52,0.00022707,2]
[311756298,1705378264525,-500.0,0.00022707,2]
[311756299,1705378264534,-527.53,0.00022707,2]
[311756300,1705378264544,-500.0,0.00022707,2]
[311756301,1705378264554,-500.0,0.00022707,2]
[311756302,1705378264563,-500.0,0.00022707,2]
[311756303,1705378264573,-500.0,0.00022707,2]
[311756304,1705378264583,-500.0,0.00022707,2]
[311756306,1705378264592,-1083.52,0.00022707,2]
[311756307,1705378264603,-500.0,0.00022707,2]
[311756308,1705378264613,-500.0,0.00022707,2]
[311756309,1705378264623,-1094.17,0.00022707,2]
[311756310,1705378264633,-768.86,0.00022707,2]
[311756311,1705378264642,-500.0,0.00022707,2]
[311756312,1705378264653,-500.0,0.00022707,2]
[311756313,1705378264664,-512.41,0.00022707,2]
[311756314,1705378264675,-827.48,0.00022707,2]
[311756315,1705378264685,-676.55,0.00022707,2]
[311756316,1705378264695,-500.0,0.00022707,2]
[311756317,1705378264705,-609.19,0.00022707,2]
[311756318,1705378264715,-614.6,0.00022707,2]
[311756319,1705378264725,-619.2,0.00022707,2]
[311756320,1705378264735,-738.17,0.00022707,2]
[311756321,1705378264744,-500.0,0.00022707,2]
[311756322,1705378264754,-884.85,0.00022707,2]
[311756323,1705378264764,-500.0,0.00022707,2]
[311756324,1705378264774,-500.0,0.00022707,2]
[311756325,1705378264784,-531.46,0.00022707,2]
[311756326,1705378264794,-500.0,0.00022707,2]
[311756327,1705378264803,-500.0,0.00022707,2]
[311756328,1705378264814,-955.88,0.00022707,2]
[311756329,1705378264823,-500.0,0.00022707,2]
[311756330,1705378264834,-500.0,0.00022707,2]
[311756331,1705378264844,-621.19,0.00022707,2]
[311756332,1705378264853,-991.97,0.00022707,2]
[311756333,1705378264863,-500.0,0.00022707,2]
[311756334,1705378264874,-500.0,0.00022707,2]
[311756335,1705378264885,-564.79,0.00022707,2]
[311756336,1705378264897,-507.62,0.00022707,2]
[311756337,1705378264907,-500.0,0.00022707,2]
[311756338,1705378264918,-549.65,0.00022707,2]
[311756339,1705378264929,-935.14,0.00022707,2]
[311756340,1705378264939,-1085.61,0.00022707,2]
[311756341,1705378264948,-500.0,0.00022707,2]
[311756342,1705378264958,-666.01,0.00022707,2]
[311756343,1705378264968,-592.73,0.00022707,2]
[311756344,1705378264979,-604.09,0.00022707,2]
[311756345,1705378264988,-621.82,0.00022707,2]
[311756346,1705378264997,-500.0,0.00022707,2]
[311756347,1705378265008,-790.79,0.00022707,2]
[311756348,1705378265019,-743.23,0.00022707,2]
[311756349,1705378265030,-945.33,0.00022707,2]
[311756350,1705378265040,-500.0,0.00022707,2]
[311756351,1705378265049,-703.31,0.00022707,2]
[311756352,1705378265059,-500.0,0.00022707,2]
[311756353,1705378265069,-606.03,0.00022707,2]
[311756354,1705378265079,-1519.81,0.00022707,2]
[311756355,1705378265089,-500.0,0.00022707,2]
[311756356,1705378265099,-651.24,0.00022707,2]
[311756357,1705378265109,-1081.4,0.00022707,2]
[311756358,1705378265119,-866.46,0.00022707,2]
[311756359,1705378265129,-1066.26,0.00022707,2]
[311756360,1705378265138,-918.86,0.00022707,2]
[311756361,1705378265148,-689.27,0.00022707,2]
[311756362,1705378265158,-2692.26,0.00022707,2]
[311756363,1705378265169,-1064.88,0.00022707,2]
[311756364,1705378265178,-731.44,0.00022707,2]
[311756365,1705378265188,-2542.67,0.00022707,2]
[311756366,1705378265198,-500.0,0.00022707,2]
[311756367,1705378265208,-922.64,0.00022707,2]
[311756368,1705378265218,-843.79,0.00022707,2]
[311756369,1705378265228,-609.44,0.00022707,2]
[311756370,1705378265238,-549.79,0.00022707,2]
[311756371,1705378265248,-602.2,0.00022707,2]
[311756372,1705378265258,-942.58,0.00022707,2]
[311756373,1705378265268,-1000.84,0.00022707,2]
[311756374,1705378265277,-831.08,0.00022707,2]
[311756375,1705378265288,-1607.09109837,0.00022708,2]
[311756376,1705378265298,-7610.60250711,0.00022736,2]
[311756377,1705378265307,-153.0,0.00022766,2]
[311756378,1705378265427,-153.0,0.00022766,2]
[311756379,1705378265436,-159.67664272,0.0002277,2]
[311756380,1705378265446,-222.53370849,0.0002278,2]
[311756381,1705378265454,-151.01,0.00022787,2]
[311756382,1705378265464,-7610.60250711,0.00022791,2]
[311756383,1705378265473,-100000.0,0.000228,2]
[311756384,1705378265483,-100000.0,0.000228,2]
[311756385,1705378265492,-200.0,0.00022815,2]
[311756386,1705378265502,-800.0,0.00022815,2]
[311756387,1705378265511,-153.23,0.00022839,2]
[311756388,1705378265521,-7610.60250711,0.00022845,2]
[311756389,1705378265530,-401.54,0.00022849,2]
[311756390,1705378265539,-500.0,0.00022874,2]
[311756391,1705378265549,-500.0,0.00022882,2]
[311756392,1705378265562,-500.0,0.00022891,2]
[311756393,1705378265572,-12261.18046386,0.000229,2]
[311756394,1705378265582,-500.0,0.000229,2]
[311756395,1705378265592,-7610.60250711,0.000229,2]
[311756396,1705378265602,-168.24633946,0.000229,2]
[311756397,1705378265612,-168.24633946,0.000229,2]
[311756398,1705378265621,-168.24633946,0.000229,2]
[311756399,1705378265631,-168.24633946,0.000229,2]
[311756400,1705378265641,-168.24633946,0.000229,2]
[311756401,1705378265651,-168.24633946,0.000229,2]
[311756402,1705378265660,-168.24633946,0.000229,2]
[311756403,1705378265670,-222.53370849,0.000229,2]
[311756404,1705378265680,-151.01,0.0002294,2]
[311756405,1705378265690,-153.23,0.00022972,2]
[311756406,1705378265699,-757.12,0.00022978,2]
[311756407,1705378265709,-1725.93,0.00022978,2]
[311756408,1705378265720,-500.0,0.00022978,2]
[311756409,1705378265732,-1331.22,0.00022978,2]
[311756410,1705378265742,-2570.87,0.00022978,2]
[311756411,1705378265752,-819.76,0.00022978,2]
[311756412,1705378265762,-500.0,0.00022978,2]
[311756413,1705378265772,-500.0,0.00022978,2]
[311756414,1705378265782,-949.27,0.00022978,2]
[311756415,1705378265791,-880.5,0.00022978,2]
[311756416,1705378265801,-2283.86,0.00022978,2]
[311756417,1705378265811,-534.79,0.00022978,2]
[311756418,1705378265820,-1047.04,0.00022978,2]
[311756419,1705378265830,-10681.3,0.00022978,2]
[311756420,1705378265840,-1080.02,0.00022978,2]
[311756421,1705378265850,-901.65,0.00022978,2]
[311756422,1705378265859,-1248.71,0.00022978,2]
[311756423,1705378265869,-950.49,0.00022978,2]
[311756424,1705378265878,-1675.14,0.00022978,2]
[311756425,1705378265888,-500.0,0.00022978,2]
[311756426,1705378265898,-2489.67,0.00022978,2]
[311756427,1705378265908,-770.27,0.00022978,2]
[311756428,1705378265917,-500.0,0.00022978,2]
[311756429,1705378265927,-1204.43,0.00022978,2]
[311756430,1705378265936,-500.0,0.00022978,2]
[311756431,1705378265946,-566.68,0.00022978,2]
[311756432,1705378265956,-500.0,0.00022978,2]
[311756433,1705378265966,-500.0,0.00022978,2]
[311756434,1705378265976,-821.86,0.00022978,2]
[311756435,1705378265986,-151.0,0.00022978,7]
[311756436,1705378265996,-151.0,0.00022978,7]
[311756437,1705378266006,-151.0,0.00022979,7]
[311756438,1705378266018,-151.0,0.00022979,7]
[311756439,1705378266029,-153.039947,0.00022979,7]
[311756440,1705378266039,-151.0,0.00022979,7]
[311756441,1705378266049,-248.185133,0.00022979,7]
[311756442,1705378266059,-151.0,0.00022979,7]
[311756443,1705378266069,-181.665169,0.00022979,2]
[311756444,1705378266079,-181.665169,0.00022979,2]
[311756445,1705378266089,-151.0,0.00022979,7]
[311756446,1705378266098,-151.0,0.00022979,7]
[311756447,1705378266108,-151.0,0.00022979,7]
[311756448,1705378266119,-151.0,0.00022979,7]
[311756449,1705378266129,-151.0,0.00022979,7]
[311756450,1705378266139,-198.582886,0.00022979,7]
[311756451,1705378266148,-500.0,0.00022979,2]
[311756452,1705378266158,-500.0,0.00022979,2]
[311756453,1705378266168,-500.0,0.00022979,2]
[311756454,1705378266177,-500.0,0.00022979,2]
[311756455,1705378266188,-541.5,0.00022979,2]
[311756456,1705378266198,-500.0,0.00022979,2]
[311756457,1705378266208,-500.0,0.00022979,2]
[311756458,1705378266218,-628.08,0.00022979,2]
[311756459,1705378266228,-318.49281772,0.00022979,2]
[311756460,1705378266238,-500.0,0.00022979,2]
[311756461,1705378266248,-509.18,0.00022979,2]
[311756462,1705378266257,-500.0,0.00022979,2]
[311756463,1705378266268,-500.0,0.00022979,2]
[311756464,1705378266278,-500.0,0.00022979,2]
[311756465,1705378266288,-500.0,0.00022979,2]
[311756466,1705378266298,-783.19,0.00022979,2]
[311756467,1705378266307,-500.0,0.00022979,2]
[311756468,1705378266317,-500.0,0.00022979,2]
[311756469,1705378266326,-666.44,0.00022979,2]
[311756470,1705378266336,-500.0,0.00022979,2]
[311756471,1705378266345,-795.08,0.00022979,2]
[311756472,1705378266354,-621.13,0.00022979,2]
[311756473,1705378266364,-500.0,0.00022979,2]
[311756474,1705378266375,-500.0,0.00022979,2]
[311756475,1705378266384,-500.0,0.00022979,2]
[311756476,1705378266394,-500.0,0.00022979,2]
[311756477,1705378266403,-500.0,0.00022979,2]
[311756478,1705378266413,-584.19,0.00022979,2]
[311756479,1705378266422,-500.0,0.00022979,2]
[311756480,1705378266432,-500.0,0.00022979,2]
[311756481,1705378266442,-500.0,0.00022979,2]
[311756482,1705378266451,-570.23,0.00022979,2]
[311756483,1705378266461,-500.0,0.00022979,2]
[311756484,1705378266471,-500.0,0.00022979,2]
[311756485,1705378266480,-500.0,0.00022979,2]
[311756486,1705378266491,-529.54,0.00022979,2]
[311756487,1705378266501,-500.0,0.00022979,2]
[311756488,1705378266511,-590.06920447,0.00022979,2]
[311756489,1705378266521,-500.0,0.00022979,2]
[311756490,1705378266532,-500.0,0.00022979,2]
[311756491,1705378266542,-500.0,0.00022979,2]
[311756492,1705378266551,-500.0,0.00022979,2]
[311756493,1705378266562,-500.0,0.00022979,2]
[311756494,1705378266572,-500.0,0.00022979,2]
[311756495,1705378266582,-500.0,0.00022979,2]
[311756496,1705378266592,-500.0,0.00022979,2]
[311756497,1705378266602,-500.0,0.00022979,2]
[311756498,1705378266612,-500.0,0.00022979,2]
[311756499,1705378266622,-500.0,0.00022979,2]
[311756500,1705378266633,-500.0,0.00022979,2]
[311756501,1705378266642,-500.0,0.00022979,2]
[311756502,1705378266652,-548.5,0.00022979,2]
[311756503,1705378266662,-948.98,0.00022979,2]
[311756504,1705378266672,-500.0,0.00022979,2]
[311756505,1705378266682,-500.0,0.00022979,2]
[311756506,1705378266692,-535.61,0.00022979,2]
[311756507,1705378266702,-500.0,0.00022979,2]
[311756508,1705378266712,-500.0,0.00022979,2]
[311756509,1705378266721,-500.0,0.00022979,2]
[311756510,1705378266732,-500.0,0.00022979,2]
[311756511,1705378266741,-500.0,0.00022979,2]
[311756512,1705378266751,-500.0,0.00022979,2]
[311756513,1705378266762,-611.29,0.00022979,2]
[311756514,1705378266772,-518.66,0.00022979,2]
[311756515,1705378266782,-500.0,0.00022979,2]
[311756516,1705378266792,-544.82,0.00022979,2]
[311756517,1705378266802,-500.0,0.00022979,2]
[311756518,1705378266811,-500.0,0.00022979,2]
[311756519,1705378266821,-500.0,0.00022979,2]
[311756520,1705378266830,-504.2,0.00022979,2]
[311756521,1705378266840,-1101.92,0.00022979,2]
[311756522,1705378266850,-500.0,0.00022979,2]
[311756523,1705378266859,-500.0,0.00022979,2]
[311756524,1705378266869,-500.0,0.00022979,2]
[311756525,1705378266879,-500.0,0.00022979,2]
[311756526,1705378266891,-500.0,0.00022979,2]
[311756527,1705378266904,-510.11,0.00022979,2]
[311756528,1705378266914,-500.0,0.00022979,2]
[311756529,1705378266924,-500.0,0.00022979,2]
[311756530,1705378266934,-500.0,0.00022979,2]
[311756531,1705378266944,-500.0,0.00022979,2]
[311756532,1705378266955,-500.0,0.00022979,2]
[311756533,1705378266967,-500.0,0.00022979,2]
[311756534,1705378266976,-500.0,0.00022979,2]
[311756535,1705378266986,-523.58,0.00022979,2]
[311756536,1705378266995,-500.0,0.00022979,2]
[311756537,1705378267005,-500.0,0.00022979,2]
[311756538,1705378267016,-500.0,0.00022979,2]
[311756539,1705378267026,-500.0,0.00022979,2]
[311756540,1705378267036,-500.0,0.00022979,2]
[311756541,1705378267047,-522.67,0.00022979,2]
[311756542,1705378267057,-500.0,0.00022979,2]
[311756543,1705378267068,-500.0,0.00022979,2]
[311756544,1705378267079,-516.66,0.00022979,2]
[311756545,1705378267089,-500.0,0.00022979,2]
[311756546,1705378267099,-500.0,0.00022979,2]
[311756547,1705378267108,-500.0,0.00022979,2]
[311756548,1705378267119,-541.55,0.00022979,2]
[311756549,1705378267129,-601.06,0.00022979,2]
[311756550,1705378267139,-433.07223952,0.00022979,2]
[311756551,1705378267148,-500.0,0.00022979,2]
[311756552,1705378267158,-500.0,0.00022979,2]
[311756553,1705378267168,-500.0,0.00022979,2]
[311756554,1705378267178,-500.0,0.00022979,2]
[311756555,1705378267189,-500.0,0.00022979,2]
[311756556,1705378267199,-545.75,0.00022979,2]
[311756557,1705378267210,-500.0,0.00022979,2]
[311756558,1705378267219,-684.49,0.00022979,2]
[311756559,1705378267230,-624.77621778,0.00022979,2]
[311756560,1705378267241,-500.0,0.00022979,2]
[311756561,1705378267252,-500.0,0.00022979,2]
[311756562,1705378267264,-522.38,0.00022979,2]
[311756563,1705378267275,-500.0,0.00022979,2]
[311756564,1705378267285,-500.0,0.00022979,2]
[311756565,1705378267295,-500.0,0.00022979,2]
[311756566,1705378267305,-500.0,0.00022979,2]
[311756567,1705378267314,-500.0,0.00022979,2]
[311756568,1705378267324,-500.0,0.00022979,2]
[311756569,1705378267334,-500.0,0.00022979,2]
[311756570,1705378267343,-528.65,0.00022979,2]
[311756571,1705378267353,-500.0,0.00022979,2]
[311756572,1705378267363,-409.70551964,0.00022979,2]
[311756573,1705378267373,-500.0,0.00022979,2]
[311756574,1705378267383,-575.15,0.00022979,2]
[311756575,1705378267393,-500.0,0.00022979,2]
[311756576,1705378267403,-620.84,0.00022979,2]
[311756577,1705378267414,-588.18,0.00022979,2]
[311756578,1705378267424,-500.0,0.00022979,2]
[311756579,1705378267434,-500.0,0.00022979,2]
[311756580,1705378267445,-3691.54,0.00022979,2]
[311756581,1705378267455,-1412.0,0.00022979,2]
[311756582,1705378267465,-500.0,0.00022979,2]
[311756583,1705378267475,-500.0,0.00022979,2]
[311756584,1705378267486,-690.1,0.00022979,2]
[311756585,1705378267495,-2090.42,0.00022979,2]
[311756586,1705378267505,-1407.81,0.00022979,2]
[311756587,1705378267518,-500.0,0.00022979,5]
[311756588,1705378267528,-3426.16,0.00022979,2]
[311756589,1705378267538,-500.0,0.00022979,2]
[311756590,1705378267548,-504.11,0.00022979,2]
[311756591,1705378267558,-651.13,0.00022979,2]
[311756592,1705378267568,-500.0,0.00022979,2]
[311756593,1705378267578,-474.01439092,0.00022979,2]
[311756594,1705378267589,-608.57,0.00022979,2]
[311756595,1705378267598,-505.43,0.00022979,2]
[311756596,1705378267609,-217.22,0.00022979,2]
[311756597,1705378267618,-500.0,0.00022979,2]
[311756598,1705378267628,-600.08,0.00022979,2]
[311756599,1705378267638,-500.0,0.00022979,2]
[311756600,1705378267647,-2143.19,0.00022979,2]
[311756601,1705378267657,-1143.7,0.00022979,2]
[311756602,1705378267667,-500.0,0.00022979,2]
[311756603,1705378267677,-500.0,0.00022979,2]
[311756604,1705378267687,-6287.89,0.00022979,2]
[311756605,1705378267696,-1016.22,0.00022979,2]
[311756606,1705378267706,-500.0,0.00022979,2]
[311756607,1705378267716,-500.0,0.00022979,2]
[311756608,1705378267725,-500.0,0.00022979,2]
[311756609,1705378267735,-500.0,0.00022979,2]
[311756610,1705378267745,-501.15,0.00022979,2]
[311756611,1705378267755,-500.0,0.00022979,2]
[311756612,1705378267767,-3940.51,0.00022979,2]
[311756613,1705378267778,-500.0,0.00022979,2]
[311756614,1705378267788,-562.73,0.00022979,2]
[311756615,1705378267798,-5999.56,0.00022979,2]
[311756616,1705378267808,-3385.6,0.00022979,2]
[311756617,1705378267818,-985.72,0.00022979,2]
[311756618,1705378267827,-3553.69,0.00022979,2]
[311756619,1705378267837,-500.0,0.00022979,2]
[311756620,1705378267847,-536.7,0.00022979,2]
[311756621,1705378267856,-182.26,0.00022979,2]
[311756622,1705378267867,-633.73,0.00022979,2]
[311756623,1705378267876,-2218.44,0.00022979,2]
[311756624,1705378267886,-2860.71,0.00022979,2]
[311756625,1705378267896,-2411.04,0.00022979,2]
[311756626,1705378267905,-1113.19,0.00022979,2]
[311756627,1705378267915,-17126.86,0.00022979,2]
[311756628,1705378267925,-500.0,0.00022979,2]
[311756629,1705378267935,-1532.91,0.00022979,2]
[311756630,1705378267946,-500.0,0.00022979,2]
[311756631,1705378267955,-4747.94,0.00022979,2]
[311756632,1705378267965,-549.03,0.00022979,2]
[311756633,1705378267974,-500.0,0.00022979,2]
[311756634,1705378267983,-945.94,0.00022979,2]
[311756635,1705378267993,-1438.97,0.00022979,2]
[311756636,1705378268003,-8028.51,0.00022979,2]
[311756637,1705378268014,-500.0,0.00022979,2]
[311756638,1705378268023,-1325.69,0.00022979,2]
[311756639,1705378268033,-500.0,0.00022979,2]
[311756640,1705378268042,-1522.11,0.00022979,2]
[311756641,1705378268050,-6292.54,0.00022979,2]
[311756642,1705378268059,-533.99,0.00022979,2]
[311756643,1705378268069,-500.0,0.00022979,2]
[311756644,1705378268078,-537.74,0.00022979,2]
[311756645,1705378268088,-589.68,0.00022979,2]
[311756646,1705378268097,-2666.98,0.00022979,2]
[311756647,1705378268107,-500.0,0.00022979,2]
[311756648,1705378268117,-500.0,0.00022979,2]
[311756649,1705378268127,-500.0,0.00022979,2]
[311756650,1705378268136,-500.0,0.00022979,2]
[311756651,1705378268146,-610.57,0.00022979,2]
[311756652,1705378268155,-500.0,0.00022979,2]
[311756653,1705378268164,-500.0,0.00022979,2]
[311756654,1705378268174,-500.0,0.00022979,2]
[311756655,1705378268183,-5758.52,0.00022979,2]
[311756656,1705378268193,-500.0,0.00022979,2]
[311756657,1705378268202,-906.71,0.00022979,2]
[311756658,1705378268210,-458.34,0.00022979,2]
[311756659,1705378268219,-559.89,0.00022979,2]
[311756660,1705378268228,-500.0,0.00022979,2]
[311756661,1705378268238,-2170.84,0.00022979,2]
[311756662,1705378268248,-500.0,0.00022979,2]
[311756663,1705378268261,-986.63,0.00022979,2]
[311756664,1705378268271,-544.47,0.00022979,2]
[311756665,1705378268280,-1258.37,0.00022979,2]
[311756666,1705378268290,-500.0,0.00022979,2]
[311756667,1705378268299,-500.0,0.00022979,2]
[311756668,1705378268308,-728.97,0.00022979,2]
[311756669,1705378268318,-500.0,0.00022979,2]
[311756670,1705378268327,-500.0,0.00022979,2]
[311756671,1705378268337,-518.59,0.00022979,2]